fUSD/lending_fUSD_20251212
["ID","MTS","AMOUNT","RATE_DAILY","PERIOD"]
[398338607,1765538057121,-500.0,0.00040273,30]
[398338608,1765538057131,-500.0,0.00040273,30]
[398338609,1765538057141,-500.0,0.00040273,30]
[398338610,1765538057150,-515.75023088,0.00040273,30]
[398338611,1765538057160,-503.96492245,0.00040273,30]
[398338612,1765538057171,-500.0,0.00040273,30]
[398338613,1765538057180,-500.0,0.00040273,30]
[398338614,1765538057190,-500.0,0.00040273,30]
[398338615,1765538057200,-500.0,0.00040273,30]
[398338616,1765538057209,-526.63,0.00040273,30]
[398338617,1765538057219,-500.0,0.00040273,30]
[398338618,1765538057229,-1577.6,0.00040273,30]
[398338619,1765538057238,-500.0,0.00040273,30]
[398338620,1765538057248,-500.0,0.00040273,30]
[398338621,1765538057258,-500.0,0.00040273,30]
[398338622,1765538057267,-500.0,0.00040273,30]
[398338623,1765538057277,-1132.8,0.00040273,30]
[398338624,1765538057287,-705.52,0.00040273,30]
[398338625,1765538057297,-570.07,0.00040273,30]
[398338626,1765538057307,-961.9,0.00040273,30]
[398338627,1765538057317,-500.0,0.00040273,30]
[398338628,1765538057327,-735.82,0.00040273,30]
[398338629,1765538057338,-749.42,0.00040273,30]
[398338630,1765538057347,-1191.88,0.00040273,30]
[398338631,1765538057356,-522.47,0.00040273,30]
[398338632,1765538057366,-4298.84,0.00040273,30]
[398338633,1765538057376,-974.16,0.00040273,30]
[398338634,1765538057385,-500.0,0.00040273,30]
[398338635,1765538057395,-1095.96,0.00040273,30]
[398338636,1765538057405,-500.0,0.00040273,30]
[398338637,1765538057414,-500.0,0.00040273,30]
[398338638,1765538057425,-938.71,0.00040273,30]
[398338639,1765538057434,-1397.58,0.00040273,30]
[398338640,1765538057444,-500.0,0.00040273,30]
[398338641,1765538057454,-500.0,0.00040273,30]
[398338642,1765538057464,-2368.57,0.00040273,30]
[398338643,1765538057473,-500.0,0.00040273,30]
[398338644,1765538057483,-508.91,0.00040273,30]
[398338645,1765538057492,-225.21318642,0.00040273,30]
[398338646,1765538057503,-1181.83,0.00040273,30]
[398338647,1765538057513,-2107.36,0.00040273,30]
[398338648,1765538057523,-591.32,0.00040273,30]
[398338649,1765538057533,-500.0,0.00040273,30]
[398338650,1765538057542,-1407.05,0.00040273,30]
[398338651,1765538057553,-500.0,0.00040273,30]
[398338652,1765538057562,-575.12206502,0.00040273,30]
[398338653,1765538057572,-712.24,0.00040273,30]
[398338654,1765538057581,-508.80403854,0.00040273,30]
[398338655,1765538057591,-500.0,0.00040273,30]
[398338656,1765538057600,-500.0,0.00040273,30]
[398338657,1765538057609,-500.0,0.00040273,30]
[398338658,1765538057619,-1000.77,0.00040273,30]
[398338659,1765538057629,-500.0,0.00040273,30]
[398338660,1765538057639,-500.0,0.00040273,30]
[398338661,1765538057649,-500.0,0.00040273,30]
[398338662,1765538057659,-578.91,0.00040273,30]
[398338663,1765538057669,-1480.01,0.00040273,30]
[398338664,1765538057679,-796.45,0.00040273,30]
[398338665,1765538057688,-538.64,0.00040273,30]
[398338666,1765538057698,-1121.9,0.00040273,30]
[398338667,1765538057708,-875.09,0.00040273,30]
[398338668,1765538057717,-500.0,0.00040273,30]
[398338669,1765538057727,-212.21147005,0.00040273,30]
[398338670,1765538057737,-1342.46,0.00040273,30]
[398338671,1765538057747,-500.0,0.00040273,30]
[398338672,1765538057756,-500.0,0.00040273,30]
[398338673,1765538057766,-500.0,0.00040273,30]
[398338674,1765538057775,-500.0,0.00040273,30]
[398338675,1765538057784,-551.7,0.00040273,30]
[398338676,1765538057794,-500.0,0.00040273,30]
[398338677,1765538057804,-500.0,0.00040273,30]
[398338678,1765538057813,-500.0,0.00040273,30]
[398338679,1765538057822,-500.0,0.00040273,30]
[398338680,1765538057832,-500.0,0.00040273,30]
[398338681,1765538057842,-891.01,0.00040273,30]
[398338682,1765538057851,-500.0,0.00040273,30]
[398338683,1765538057862,-500.0,0.00040273,30]
[398338684,1765538057874,-1631.76,0.00040273,30]
[398338685,1765538057883,-500.0,0.00040273,30]
[398338686,1765538057892,-511.07,0.00040273,30]
[398338687,1765538057903,-500.0,0.00040273,30]
[398338688,1765538057912,-500.0,0.00040273,30]
[398338689,1765538057922,-935.63,0.00040273,30]
[398338690,1765538057931,-500.0,0.00040273,30]
[398338691,1765538057943,-1213.86,0.00040273,30]
[398338692,1765538057952,-500.0,0.00040273,30]
[398338693,1765538057962,-713.52,0.00040273,30]
[398338694,1765538057971,-500.0,0.00040273,30]
[398338695,1765538057980,-999.59,0.00040273,30]
[398338696,1765538057989,-500.0,0.00040273,30]
[398338697,1765538057998,-762.67,0.00040273,30]
[398338698,1765538058008,-500.0,0.00040273,30]
[398338699,1765538058018,-500.0,0.00040273,30]
[398338700,1765538058027,-922.65,0.00040273,30]
[398338701,1765538058036,-500.0,0.00040273,30]
[398338702,1765538058045,-1139.73,0.00040273,30]
[398338703,1765538058055,-960.26,0.00040273,30]
[398338704,1765538058065,-921.07,0.00040273,30]
[398338705,1765538058075,-824.08,0.00040273,30]
[398338706,1765538058084,-500.0,0.00040273,30]
[398338707,1765538058094,-500.0,0.00040273,30]
[398338708,1765538058104,-1836.88,0.00040273,30]
[398338709,1765538058113,-500.0,0.00040273,30]
[398338710,1765538058122,-500.0,0.00040273,30]
[398338711,1765538058132,-500.0,0.00040273,30]
[398338712,1765538058141,-500.0,0.00040273,30]
[398338713,1765538058151,-807.06,0.00040273,30]
[398338714,1765538058162,-1304.95,0.00040273,30]
[398338715,1765538058173,-1005.91,0.00040273,30]
[398338716,1765538058182,-500.0,0.00040273,30]
[398338717,1765538058192,-500.0,0.00040273,30]
[398338718,1765538058202,-1051.07,0.00040273,30]
[398338719,1765538058212,-500.0,0.00040273,30]
[398338720,1765538058222,-500.0,0.00040273,30]
[398338721,1765538058232,-929.4,0.00040273,30]
[398338722,1765538058242,-500.0,0.00040273,30]
[398338723,1765538058252,-500.0,0.00040273,30]
[398338724,1765538058261,-589.22832368,0.00040273,30]
[398338725,1765538058271,-500.0,0.00040273,30]
[398338726,1765538058280,-500.0,0.00040273,30]
[398338727,1765538058289,-500.0,0.00040273,30]
[398338728,1765538058298,-621.09,0.00040273,30]
[398338729,1765538058308,-500.0,0.00040273,30]
[398338730,1765538058318,-500.0,0.00040273,30]
[398338731,1765538058328,-500.0,0.00040273,30]
[398338732,1765538058338,-1874.12,0.00040273,30]
[398338733,1765538058347,-500.0,0.00040273,30]
[398338734,1765538058357,-500.0,0.00040273,30]
[398338735,1765538058366,-500.0,0.00040273,30]
[398338736,1765538058376,-500.0,0.00040273,30]
[398338737,1765538058387,-521.95,0.00040273,30]
[398338738,1765538058397,-623.83563583,0.00040273,30]
[398338739,1765538058407,-600.0,0.00040273,30]
[398338740,1765538058416,-500.0,0.00040273,25]
[398338741,1765538058426,-500.0,0.00040273,30]
[398338742,1765538058435,-500.0,0.00040273,30]
[398338743,1765538058446,-578.01,0.00040273,30]
[398338744,1765538058455,-500.0,0.00040273,12]
[398338745,1765538058465,-500.0,0.00040273,30]
[398338746,1765538058474,-500.0,0.00040273,30]
[398338747,1765538058483,-500.0,0.00040273,30]
[398338748,1765538058496,-701.87,0.00040273,30]
[398338749,1765538058506,-496.76458068,0.00040273,30]
[398338750,1765538058894,-667.26,0.00040273,7]
[398338751,1765538058907,-532.36,0.00040273,30]
[398338752,1765538058918,-500.0,0.00040273,30]
[398338753,1765538058928,-500.0,0.00040273,30]
[398338754,1765538058938,-890.33,0.00040273,30]
[398338755,1765538058947,-619.34,0.00040273,30]
[398338756,1765538058956,-586.44345689,0.00040273,30]
[398338757,1765538058966,-500.0,0.00040273,30]
[398338758,1765538058975,-666.66,0.00040273,30]
[398338759,1765538058985,-500.0,0.00040273,30]
[398338760,1765538058995,-679.95,0.00040273,30]
[398338761,1765538059005,-846.97,0.00040273,30]
[398338762,1765538059015,-1622.6,0.00040273,30]
[398338763,1765538059025,-500.0,0.00040273,30]
[398338764,1765538059034,-500.0,0.00040273,30]
[398338765,1765538059044,-500.0,0.00040273,30]
[398338766,1765538059054,-1634.93,0.00040273,30]
[398338767,1765538059063,-1372.09,0.00040273,30]
[398338768,1765538059074,-500.0,0.00040273,30]
[398338769,1765538059084,-867.67,0.00040273,30]
[398338770,1765538059094,-500.0,0.00040273,30]
[398338771,1765538059103,-500.0,0.00040273,30]
[398338772,1765538059113,-630.63,0.00040273,30]
[398338773,1765538059123,-500.0,0.00040273,30]
[398338774,1765538059133,-500.0,0.00040273,30]
[398338775,1765538059143,-1368.81,0.00040273,30]
[398338776,1765538059153,-500.0,0.00040273,30]
[398338777,1765538059163,-500.0,0.00040273,30]
[398338778,1765538059174,-500.0,0.00040273,30]
[398338779,1765538059184,-500.0,0.00040273,30]
[398338780,1765538059194,-500.0,0.00040273,30]
[398338781,1765538059204,-500.0,0.00040273,30]
[398338782,1765538059214,-500.0,0.00040273,30]
[398338783,1765538059224,-2251.55,0.00040273,30]
[398338784,1765538059233,-1877.84,0.00040273,30]
[398338785,1765538059243,-626.64,0.00040273,30]
[398338786,1765538059253,-500.0,0.00040273,30]
[398338787,1765538059268,-554.25,0.00040273,30]
[398338788,1765538059284,-500.0,0.00040273,30]
[398338789,1765538059294,-520.2509908,0.00040273,30]
[398338790,1765538059304,-500.0,0.00040273,30]
[398338791,1765538059314,-168.06409658,0.00040273,30]
[398338792,1765538059325,-1066.72,0.00040273,30]
[398338793,1765538059335,-500.0,0.00040273,30]
[398338794,1765538059346,-1191.7,0.00040273,30]
[398338795,1765538059355,-304.62675667,0.00040273,30]
[398338796,1765538059366,-500.0,0.00040273,30]
[398338797,1765538059375,-620.95,0.00040273,30]
[398338798,1765538059385,-573.87306404,0.00040273,30]
[398338799,1765538059395,-500.0,0.00040273,30]
[398338800,1765538059405,-500.0,0.00040273,30]
[398338801,1765538059416,-500.0,0.00040273,30]
[398338802,1765538059425,-2254.72,0.00040273,30]
[398338803,1765538059435,-1109.61,0.00040273,30]
[398338804,1765538059446,-500.0,0.00040273,30]
[398338805,1765538059455,-500.0,0.00040273,30]
[398338806,1765538059465,-500.0,0.00040273,30]
[398338807,1765538059474,-500.0,0.00040273,30]
[398338808,1765538059485,-1451.06,0.00040273,30]
[398338809,1765538059495,-524.1,0.00040273,30]
[398338810,1765538059505,-500.0,0.00040273,30]
[398338811,1765538059515,-535.99,0.00040273,30]
[398338812,1765538059525,-1647.96,0.00040273,30]
[398338813,1765538059535,-500.0,0.00040273,30]
[398338814,1765538059544,-500.0,0.00040273,30]
[398338815,1765538059553,-500.0,0.00040273,30]
[398338816,1765538059563,-500.0,0.00040273,30]
[398338817,1765538059574,-1607.35,0.00040273,30]
[398338818,1765538059583,-500.0,0.00040273,30]
[398338819,1765538059593,-1890.33,0.00040273,30]
[398338820,1765538059603,-500.0,0.00040273,30]
[398338821,1765538059614,-702.35,0.00040273,30]
[398338822,1765538059623,-1448.32,0.00040273,30]
[398338823,1765538059633,-1632.19,0.00040273,30]
[398338824,1765538059643,-500.0,0.00040273,30]
[398338825,1765538059652,-876.83,0.00040273,30]
[398338826,1765538059663,-832.79,0.00040273,30]
[398338827,1765538059672,-500.0,0.00040273,30]
[398338828,1765538059682,-500.0,0.00040273,30]
[398338829,1765538059691,-623.5,0.00040273,30]
[398338830,1765538059701,-2761.6,0.00040273,30]
[398338831,1765538059710,-604.56,0.00040273,30]
[398338832,1765538059720,-769.61,0.00040273,30]
[398338833,1765538059730,-1014.43,0.00040273,30]
[398338834,1765538059740,-500.0,0.00040273,30]
[398338835,1765538059750,-500.0,0.00040273,30]
[398338836,1765538059760,-500.0,0.00040273,30]
[398338837,1765538059770,-500.0,0.00040273,30]
[398338838,1765538059780,-504.27008835,0.00040273,30]
[398338839,1765538059790,-977.53,0.00040273,30]
[398338840,1765538059799,-799.32,0.00040273,30]
[398338841,1765538059809,-500.0,0.00040273,30]
[398338842,1765538059818,-599.76521683,0.00040273,30]
[398338843,1765538059828,-1062.18,0.00040273,30]
[398338844,1765538059838,-882.68,0.00040273,30]
[398338845,1765538059847,-502.48,0.00040273,30]
[398338846,1765538059857,-500.0,0.00040273,30]
[398338847,1765538059871,-500.0,0.00040273,30]
[398338848,1765538059881,-500.0,0.00040273,30]
[398338849,1765538059890,-907.2,0.00040273,30]
[398338850,1765538059900,-532.41276704,0.00040273,30]
[398338851,1765538059910,-566.21,0.00040273,30]
[398338852,1765538059920,-1677.04,0.00040273,30]
[398338853,1765538059930,-786.93,0.00040273,30]
[398338854,1765538059941,-1523.05,0.00040273,30]
[398338855,1765538059951,-500.0,0.00040273,30]
[398338856,1765538059961,-623.75,0.00040273,30]
[398338857,1765538059971,-646.21,0.00040273,30]
[398338858,1765538059980,-500.0,0.00040273,30]
[398338859,1765538059990,-500.43,0.00040273,30]
[398338860,1765538060000,-500.0,0.00040273,30]
[398338861,1765538060010,-850.56,0.00040273,30]
[398338862,1765538060020,-506.59,0.00040273,30]
[398338863,1765538060029,-2457.1,0.00040273,30]
[398338864,1765538060039,-500.0,0.00040273,30]
[398338865,1765538060048,-1824.58,0.00040273,30]
[398338866,1765538060058,-593.38,0.00040273,30]
[398338867,1765538060068,-500.0,0.00040273,30]
[398338868,1765538060078,-500.0,0.00040273,30]
[398338869,1765538060088,-500.0,0.00040273,30]
[398338870,1765538060105,-2498.97,0.00040273,30]
[398338871,1765538060116,-937.73,0.00040273,30]
[398338872,1765538060127,-500.0,0.00040273,30]
[398338873,1765538060137,-500.0,0.00040273,30]
[398338874,1765538060148,-500.0,0.00040273,30]
[398338875,1765538060157,-7728.61,0.00040273,30]
[398338876,1765538060167,-500.0,0.00040273,30]
[398338877,1765538060177,-500.0,0.00040273,30]
[398338878,1765538060186,-500.0,0.00040273,30]
[398338879,1765538060196,-521.3,0.00040273,30]
[398338880,1765538060205,-5162.44,0.00040273,30]
[398338881,1765538060215,-4512.65,0.00040273,30]
[398338882,1765538060225,-2045.54,0.00040273,30]
[398338883,1765538060235,-2044.49,0.00040273,30]
[398338884,1765538060245,-520.41685071,0.00040273,30]
[398338885,1765538060255,-500.0,0.00040273,30]
[398338886,1765538060266,-803.09,0.00040273,30]
[398338887,1765538060275,-500.0,0.00040273,30]
[398338888,1765538060286,-500.0,0.00040273,30]
[398338889,1765538060296,-880.62,0.00040273,30]
[398338890,1765538060311,-1055.54,0.00040273,30]
[398338891,1765538060331,-500.0,0.00040273,30]
[398338892,1765538060351,-1170.58,0.00040273,30]
[398338893,1765538060361,-2563.76,0.00040273,30]
[398338894,1765538060371,-500.0,0.00040273,30]
[398338895,1765538060381,-3132.56,0.00040273,30]
[398338896,1765538060391,-647.8,0.00040273,30]
[398338897,1765538060401,-920.56,0.00040273,30]
[398338898,1765538060410,-1267.04,0.00040273,30]
[398338899,1765538060420,-1034.08,0.00040273,30]
[398338900,1765538060430,-500.0,0.00040273,30]
[398338901,1765538060440,-500.0,0.00040273,30]
[398338902,1765538060450,-636.17,0.00040273,30]
[398338903,1765538060459,-534.23,0.00040273,30]
[398338904,1765538060469,-9205.7,0.00040273,30]
[398338905,1765538060479,-2487.95,0.00040273,14]
[398338906,1765538060488,-852.0,0.00040273,30]
[398338907,1765538060498,-500.0,0.00040273,30]
[398338908,1765538060508,-500.0,0.00040273,30]
[398338909,1765538060517,-1627.24,0.00040273,30]
[398338910,1765538060527,-709.82,0.00040273,30]
[398338911,1765538060537,-9937.58,0.00040273,30]
[398338912,1765538060546,-1228.02,0.00040273,30]
[398338913,1765538060556,-727.84,0.00040273,30]
[398338914,1765538060565,-500.0,0.00040273,30]
[398338915,1765538060575,-181.83872821,0.00040273,30]
[398338916,1765538060585,-2584.59,0.00040273,30]
[398338917,1765538060594,-3111.31,0.00040273,30]
[398338918,1765538060603,-938.28,0.00040273,30]
[398338919,1765538060612,-500.0,0.00040273,30]
[398338920,1765538060621,-500.0,0.00040273,30]
[398338921,1765538060631,-724.94,0.00040273,30]
[398338922,1765538060641,-2254.56,0.00040273,30]
[398338923,1765538060651,-899.02,0.00040273,30]
[398338924,1765538060660,-922.78,0.00040273,30]
[398338925,1765538060670,-500.0,0.00040273,30]
[398338926,1765538060679,-500.0,0.00040273,30]
[398338927,1765538060689,-730.51,0.00040273,30]
[398338928,1765538060698,-500.0,0.00040273,30]
[398338929,1765538060708,-670.8,0.00040273,30]
[398338930,1765538060717,-500.0,0.00040273,30]
[398338931,1765538060727,-890.92,0.00040273,30]
[398338932,1765538060737,-1306.66,0.00040273,30]
[398338933,1765538060747,-500.0,0.00040273,30]
[398338934,1765538060756,-500.0,0.00040273,30]
[398338935,1765538060766,-949.39,0.00040273,30]
[398338936,1765538060775,-1193.64,0.00040273,30]
[398338937,1765538060785,-667.64,0.00040273,30]
[398338938,1765538060794,-1105.53,0.00040273,30]
[398338939,1765538060804,-500.0,0.00040273,30]
[398338940,1765538060813,-500.0,0.00040273,30]
[398338941,1765538060823,-500.0,0.00040273,30]
[398338942,1765538060832,-1566.37,0.00040273,30]
[398338943,1765538060842,-691.31,0.00040273,30]
[398338944,1765538060851,-986.5,0.00040273,30]
[398338945,1765538060861,-2660.16,0.00040273,30]
[398338946,1765538060873,-500.0,0.00040273,30]
[398338947,1765538060883,-677.72,0.00040273,30]
[398338948,1765538060892,-1062.51,0.00040273,30]
[398338949,1765538060902,-500.0,0.00040273,30]
[398338950,1765538060911,-1023.2,0.00040273,30]
[398338951,1765538060921,-765.14,0.00040273,30]
[398338952,1765538060930,-2249.34,0.00040273,30]
[398338953,1765538060940,-541.12,0.00040273,30]
[398338954,1765538060950,-641.4,0.00040273,30]
[398338955,1765538060959,-500.0,0.00040273,30]
[398338956,1765538060969,-500.0,0.00040273,30]
[398338957,1765538060978,-2149.98,0.00040273,30]
[398338958,1765538060988,-1066.93,0.00040273,30]
[398338959,1765538060997,-500.0,0.00040273,30]
[398338960,1765538061007,-500.0,0.00040273,30]
[398338961,1765538061016,-500.0,0.00040273,30]
[398338962,1765538061025,-1794.3,0.00040273,30]
[398338963,1765538061035,-500.0,0.00040273,30]
[398338964,1765538061044,-6024.98,0.00040273,30]
[398338965,1765538061054,-500.0,0.00040273,30]
[398338966,1765538061064,-500.0,0.00040273,30]
[398338967,1765538061073,-652.45,0.00040273,30]
[398338968,1765538061082,-500.0,0.00040273,30]
[398338969,1765538061092,-584.74,0.00040273,30]
[398338970,1765538061101,-500.0,0.00040273,30]
[398338971,1765538061111,-1595.92,0.00040273,30]
[398338972,1765538061120,-920.72,0.00040273,30]
[398338973,1765538061130,-1243.86,0.00040273,30]
[398338974,1765538061140,-500.0,0.00040273,30]
[398338975,1765538061150,-616.65,0.00040273,30]
[398338976,1765538061159,-3185.29,0.00040273,30]
[398338977,1765538061170,-292.9150503,0.00040273,30]
[398338978,1765538061179,-1899.74,0.00040273,30]
[398338979,1765538061188,-767.47,0.00040273,30]
[398338980,1765538061198,-3636.79,0.00040273,30]
[398338981,1765538061207,-500.0,0.00040273,30]
[398338982,1765538061216,-1218.06,0.00040273,30]
[398338983,1765538061226,-1283.24,0.00040273,30]
[398338984,1765538061235,-500.0,0.00040273,30]
[398338985,1765538061245,-500.0,0.00040273,30]
[398338986,1765538061254,-3032.18,0.00040273,30]
[398338987,1765538061264,-500.0,0.00040273,30]
[398338988,1765538061273,-616.0,0.00040273,30]
[398338989,1765538061284,-1329.42,0.00040273,30]
[398338990,1765538061293,-500.0,0.00040273,30]
[398338991,1765538061303,-500.0,0.00040273,30]
[398338992,1765538061312,-638.79,0.00040273,30]
[398338993,1765538061322,-500.0,0.00040273,30]
[398338996,1765538061494,-950.53,0.00040273,30]
[398338997,1765538061504,-664.16,0.00040273,30]
[398338998,1765538061514,-500.0,0.00040273,30]
[398338999,1765538061523,-1066.97,0.00040273,30]
[398339000,1765538061533,-599.13,0.00040273,30]
[398339001,1765538061542,-500.0,0.00040273,30]
[398339002,1765538061561,-1433.51,0.00040273,30]
[398339003,1765538061571,-6840.01,0.00040273,30]
[398339004,1765538061580,-2849.13,0.00040273,30]
[398339005,1765538061589,-500.0,0.00040273,30]
[398339006,1765538061599,-500.0,0.00040273,30]
[398339007,1765538061608,-642.56,0.00040273,30]
[398339008,1765538061617,-621.92563899,0.00040273,30]
[398339009,1765538061626,-2147.05,0.00040273,30]
[398339010,1765538061635,-6708.51,0.00040273,30]
[398339011,1765538061644,-500.0,0.00040273,30]
[398339012,1765538061653,-1746.8,0.00040273,30]
[398339013,1765538061663,-500.0,0.00040273,30]
[398339014,1765538061672,-1135.94,0.00040273,30]
[398339015,1765538061682,-1293.36,0.00040273,30]
[398339016,1765538061691,-500.0,0.00040273,30]
[398339017,1765538061700,-500.0,0.00040273,30]
[398339018,1765538061709,-500.0,0.00040273,30]
[398339019,1765538061718,-1510.63,0.00040273,30]
[398339020,1765538061728,-500.0,0.00040273,30]
[398339021,1765538061737,-911.19,0.00040273,30]
[398339022,1765538061746,-2130.63,0.00040273,30]
[398339023,1765538061755,-500.0,0.00040273,30]
[398339024,1765538061764,-1011.94,0.00040273,30]
[398339025,1765538061774,-1929.57,0.00040273,30]
[398339026,1765538061783,-657.48,0.00040273,30]
[398339027,1765538061793,-1120.09,0.00040273,30]
[398339028,1765538061802,-732.14,0.00040273,30]
[398339029,1765538061811,-395.98676723,0.00040273,30]
[398339030,1765538061820,-4030.69,0.00040273,30]
[398339031,1765538061831,-500.0,0.00040273,30]
[398339032,1765538061840,-519.7109223,0.00040273,30]
[398339033,1765538061850,-995.54,0.00040273,30]
[398339034,1765538061859,-1083.81,0.00040273,30]
[398339035,1765538061873,-726.94,0.00040273,30]
[398339036,1765538061884,-3238.19,0.00040273,30]
[398339037,1765538061893,-2367.27,0.00040273,30]
[398339038,1765538061903,-608.27,0.00040273,30]
[398339039,1765538061915,-500.0,0.00040273,30]
[398339040,1765538061924,-500.0,0.00040273,30]
[398339041,1765538061934,-500.0,0.00040273,30]
[398339042,1765538061945,-583.32,0.00040273,30]
[398339043,1765538061955,-500.0,0.00040273,30]
[398339044,1765538061964,-500.0,0.00040273,30]
[398339045,1765538061975,-625.74,0.00040273,30]
[398339046,1765538061985,-500.0,0.00040273,30]
[398339047,1765538061994,-423.97818565,0.00040273,30]
[398339048,1765538062003,-500.0,0.00040273,30]
[398339049,1765538062013,-2843.71,0.00040273,30]
[398339050,1765538062022,-1329.63,0.00040273,30]
[398339051,1765538062032,-500.0,0.00040273,30]
[398339052,1765538062042,-605.17,0.00040273,30]
[398339053,1765538062051,-500.0,0.00040273,30]
[398339054,1765538062061,-610.47,0.00040273,30]
[398339055,1765538062071,-677.17,0.00040273,30]
[398339056,1765538062081,-1219.89,0.00040273,30]
[398339057,1765538062091,-1003.5,0.00040273,30]
[398339058,1765538062101,-658.88,0.00040273,30]
[398339059,1765538062111,-621.26,0.00040273,30]
[398339060,1765538062122,-500.0,0.00040273,30]
[398339061,1765538062131,-500.0,0.00040273,30]
[398339062,1765538062140,-500.0,0.00040273,30]
[398339063,1765538062149,-2089.28,0.00040273,30]
[398339064,1765538062158,-500.0,0.00040273,30]
[398339065,1765538062167,-777.33,0.00040273,30]
[398339066,1765538062176,-500.0,0.00040273,30]
[398339067,1765538062186,-506.96,0.00040273,30]
[398339068,1765538062196,-600.44,0.00040273,30]
[398339069,1765538062207,-557.42,0.00040273,30]
[398339070,1765538062216,-500.0,0.00040273,30]
[398339071,1765538062226,-610.54,0.00040273,30]
[398339072,1765538062235,-500.0,0.00040273,30]
[398339073,1765538062244,-516.74,0.00040273,30]
[398339074,1765538062253,-500.0,0.00040273,15]
[398339075,1765538062262,-759.14,0.00040273,30]
[398339076,1765538062273,-571.0,0.00040273,30]
[398339077,1765538062282,-588.85,0.00040273,30]
[398339078,1765538062291,-1161.86,0.00040273,30]
[398339079,1765538062301,-1044.6,0.00040273,30]
[398339080,1765538062311,-2199.62,0.00040273,30]
[398339081,1765538062320,-500.0,0.00040273,30]
[398339082,1765538062329,-500.0,0.00040273,30]
[398339083,1765538062338,-503.79,0.00040273,30]
[398339084,1765538062348,-500.0,0.00040273,30]
[398339085,1765538062357,-500.0,0.00040273,30]
[398339086,1765538062366,-500.0,0.00040273,30]
[398339087,1765538062375,-500.0,0.00040273,30]
[398339088,1765538062384,-809.01,0.00040273,30]
[398339089,1765538062394,-500.0,0.00040273,30]
[398339090,1765538062403,-500.0,0.00040273,30]
[398339091,1765538062412,-578.6,0.00040273,30]
[398339092,1765538062421,-500.0,0.00040273,30]
[398339093,1765538062430,-719.27,0.00040273,30]
[398339094,1765538062440,-2620.34,0.00040273,30]
[398339095,1765538062449,-1731.68,0.00040273,30]
[398339096,1765538062458,-517.1,0.00040273,30]
[398339097,1765538062467,-2018.77,0.00040273,30]
[398339098,1765538062476,-500.0,0.00040273,30]
[398339099,1765538062485,-822.61,0.00040273,30]
[398339100,1765538062495,-500.0,0.00040273,30]
[398339101,1765538062504,-511.8,0.00040273,30]
[398339102,1765538062513,-1929.49,0.00040273,30]
[398339103,1765538062523,-1245.76,0.00040273,30]
[398339104,1765538062531,-500.0,0.00040273,30]
[398339105,1765538062541,-629.76,0.00040273,30]
[398339106,1765538062550,-500.0,0.00040273,30]
[398339107,1765538062559,-2747.32,0.00040273,30]
[398339108,1765538062568,-504.87,0.00040273,30]